fUSD/lending_fUSD_20260308
["ID","MTS","AMOUNT","RATE_DAILY","PERIOD"]
[407998973,1773000632441,-972.08259118,0.00015,30]
[407998974,1773000632450,-500.0,0.00015,30]
[407998975,1773000632460,-576.36919382,0.00015,30]
[407998976,1773000632469,-500.0,0.00015,30]
[407998977,1773000632479,-500.0,0.00015,30]
[407998978,1773000632488,-500.0,0.00015,30]
[407998979,1773000632498,-500.0,0.00015,30]
[407998980,1773000632508,-1435.41,0.00015137,2]
[407998981,1773000632518,-862.22,0.00015249,2]
[407998982,1773000632528,-248.45,0.00015288,2]
[407998983,1773000632537,-587.0,0.00015295,2]
[407998984,1773000632548,-2351.0,0.00015379,2]
[407998985,1773000632564,-171.87038139,0.000154,2]
[407998986,1773000632574,-159.0,0.000154,3]
[407998987,1773000632584,-1404.75,0.00015471,2]
[407998988,1773000632595,-2000.0,0.00015488,2]
[407998989,1773000632605,-862.22,0.0001563,2]
[407998990,1773000632615,-280.99,0.00015639,2]
[407998991,1773000632626,-161.51,0.00015682,2]
[407998992,1773000632636,-157.6,0.00015733,2]
[407998993,1773000632646,-7178.07831495,0.00015771,2]
[407998994,1773000632655,-637.28,0.00015938,2]
[407998995,1773000632665,-150.00000001,0.00016,2]
[407998996,1773000632675,-862.22,0.00016011,2]
[407998997,1773000632685,-159.0,0.0001606,3]
[407998998,1773000632695,-255.0,0.00016124,2]
[407998999,1773000632705,-5000.00961842,0.000162,5]
[407999000,1773000632714,-200.0,0.000163,2]
[407999001,1773000632724,-862.22,0.00016392,2]
[407999002,1773000632734,-161.51,0.00016507,2]
[407999003,1773000632744,-157.6,0.000166,2]
[407999004,1773000633113,-159.0,0.0001672,3]
[407999005,1773000633144,-862.22,0.00016773,2]
[407999006,1773000633153,-823.0,0.00016778,2]
[407999007,1773000633163,-321.92,0.00016781,2]
[407999008,1773000633172,-1226.71,0.00016912,2]
[407999009,1773000633181,-3292.0,0.00016917,2]
[407999010,1773000633191,-503.0,0.00017,2]
[407999011,1773000633201,-2000.0,0.00017067,2]
[407999012,1773000633217,-433.0,0.00017339,2]
[407999013,1773000633231,-350.64242925,0.00017364,2]
[407999014,1773000633242,-159.0,0.0001738,3]
[407999015,1773000633252,-2000.0,0.00017424,2]
[407999016,1773000633262,-150.0,0.00017464,2]
[407999017,1773000633272,-157.6,0.00017467,2]
[407999018,1773000633282,-845.02,0.00017518,3]
[407999019,1773000633292,-151.0,0.00017525,2]
[407999020,1773000633302,-151.0,0.00017525,2]
[407999021,1773000633313,-321.92,0.00017713,2]
[407999022,1773000633324,-637.28,0.00017931,2]
[407999023,1773000633334,-159.0,0.0001804,3]
[407999024,1773000633345,-1400.0,0.00018082,7]
[407999025,1773000633354,-700.0,0.00018082,7]
[407999026,1773000633364,-503.0,0.00018313,3]
[407999027,1773000633374,-157.6,0.00018333,2]
[407999028,1773000633383,-1400.0,0.00018356,7]
[407999029,1773000633394,-1152.0,0.00018405,2]
[407999030,1773000633403,-153.28451811,0.00018486,2]
[407999031,1773000633414,-9999.99,0.00018533,2]
[407999032,1773000633424,-150.99,0.00018533,2]
[407999033,1773000633434,-501.80459716,0.00018559,2]
[407999034,1773000633443,-4609.0,0.00018608,2]
[407999035,1773000633453,-162.0,0.00018629,2]
[407999036,1773000633463,-321.92,0.00018646,2]
[407999037,1773000633472,-159.0,0.000187,3]
[407999038,1773000633481,-172.82949155,0.00018883,2]
[407999039,1773000633492,-500.0,0.00019,6]
[407999040,1773000633502,-2805.0,0.0001904,2]
[407999041,1773000633511,-1279.0,0.00019053,2]
[407999042,1773000633521,-150.0,0.00019053,2]
[407999043,1773000633531,-5992.0,0.00019053,2]
[407999044,1773000633541,-1041.2178478,0.00019053,2]
[407999045,1773000633557,-1418.7821522,0.00019053,2]
[407999046,1773000633568,-1100.0,0.000191,6]
[407999047,1773000633578,-1400.0,0.00019178,7]
[407999048,1773000633589,-700.0,0.00019178,7]
[407999049,1773000633599,-1000.0,0.00019178,2]
[407999050,1773000633609,-162.09306805,0.00019188,2]
[407999051,1773000633618,-286.88,0.00019189,2]
[407999052,1773000633630,-173.486008,0.00019199,2]
[407999053,1773000633641,-173.486008,0.00019199,2]
[407999054,1773000633654,-173.486008,0.00019199,2]
[407999055,1773000633663,-173.486008,0.00019199,2]
[407999056,1773000633673,-572.004566,0.00019199,2]
[407999057,1773000633684,-572.004566,0.00019199,2]
[407999058,1773000633694,-151.0,0.00019199,2]
[407999059,1773000633705,-572.004566,0.00019199,2]
[407999060,1773000633717,-572.004566,0.00019199,2]
[407999061,1773000633729,-151.0,0.00019199,2]
[407999062,1773000633740,-2000.0,0.000192,2]
[407999063,1773000633754,-1700.0,0.000192,7]
[407999064,1773000633765,-157.6,0.000192,2]
[407999065,1773000633776,-500.0,0.00019233,2]
[407999066,1773000633786,-454.05701346,0.0001926,2]
[407999067,1773000633796,-2300.0,0.000193,7]
[407999068,1773000633806,-643.25461226,0.00019356,2]
[407999069,1773000633819,-582.90533455,0.00019356,2]
[407999070,1773000633828,-2000.0,0.0001936,2]
[407999071,1773000633838,-159.0,0.0001936,3]
[407999072,1773000633848,-2900.0,0.000194,7]
[407999073,1773000633858,-1400.0,0.00019452,7]
[407999074,1773000633867,-151.0,0.00019452,2]
[407999075,1773000633877,-151.0,0.00019452,2]
[407999076,1773000633887,-251.241059,0.00019452,2]
[407999077,1773000633896,-765.701769,0.00019452,2]
[407999078,1773000633906,-765.701769,0.00019452,2]
[407999079,1773000633916,-765.701769,0.00019452,2]
[407999080,1773000633927,-765.701769,0.00019452,2]
[407999081,1773000633936,-1000.0,0.00019452,2]
[407999082,1773000633946,-500.0,0.000195,7]
[407999083,1773000633959,-151.0,0.000195,2]
[407999084,1773000633969,-204.35999113,0.0001953,2]
[407999085,1773000633980,-321.92,0.00019578,2]
[407999086,1773000633991,-500.0,0.000196,7]
[407999087,1773000634003,-150.0,0.00019601,2]
[407999088,1773000634013,-150.0,0.00019601,2]
[407999089,1773000634023,-503.0,0.00019625,4]
[407999090,1773000634033,-250.0,0.00019656,2]
[407999091,1773000634043,-250.0,0.00019656,2]
[407999092,1773000634054,-1000.0,0.000197,2]
[407999093,1773000634064,-500.0,0.000197,7]
[407999094,1773000634076,-204.35999113,0.00019723,2]
[407999095,1773000634087,-173.486008,0.00019726,2]
[407999096,1773000634097,-173.486008,0.00019726,2]
[407999097,1773000634107,-173.486008,0.00019726,2]
[407999098,1773000634118,-173.486008,0.00019726,2]
[407999099,1773000634128,-572.004566,0.00019726,2]
[407999100,1773000634138,-572.004566,0.00019726,2]
[407999101,1773000634147,-572.004566,0.00019726,2]
[407999102,1773000634161,-572.004566,0.00019726,2]
[407999103,1773000634171,-200.0,0.00019726,2]
[407999104,1773000634182,-1000.0,0.00019726,2]
[407999105,1773000634192,-174.28877422,0.0001973,2]
[407999106,1773000634204,-447.0,0.00019752,2]
[407999107,1773000634214,-447.0,0.00019757,2]
[407999108,1773000634224,-519.0,0.00019757,5]
[407999109,1773000634234,-150.0,0.00019779,2]
[407999110,1773000634244,-151.0,0.00019779,2]
[407999111,1773000634254,-765.701769,0.00019779,2]
[407999112,1773000634264,-765.701769,0.00019779,2]
[407999113,1773000634275,-765.701769,0.00019779,2]
[407999114,1773000634286,-765.701769,0.00019779,2]
[407999115,1773000634296,-1000.0,0.00019781,2]
[407999116,1773000634307,-151.0,0.00019789,2]
[407999117,1773000634318,-232.735461,0.00019789,2]
[407999118,1773000634328,-232.735461,0.00019789,2]
[407999119,1773000634338,-232.735461,0.00019789,2]
[407999120,1773000634351,-232.735461,0.00019789,2]
[407999121,1773000634364,-151.0,0.00019789,2]
[407999122,1773000634375,-151.0,0.00019789,2]
[407999123,1773000634387,-151.0,0.00019789,2]
[407999124,1773000634397,-151.0,0.00019789,2]
[407999125,1773000634408,-151.0,0.00019789,2]
[407999126,1773000634418,-151.0,0.00019789,2]
[407999127,1773000634430,-177.0,0.00019789,2]
[407999128,1773000634441,-3015.0,0.0001979,2]
[407999129,1773000634450,-151.0,0.000198,2]
[407999130,1773000634460,-151.0,0.000198,2]
[407999131,1773000634472,-150.0,0.000198,14]
[407999132,1773000634482,-151.0,0.000198,2]
[407999133,1773000634492,-151.0,0.000198,2]
[407999134,1773000634503,-153.955216,0.000198,2]
[407999135,1773000634514,-151.0,0.000198,2]
[407999136,1773000634524,-151.0,0.000198,2]
[407999137,1773000634534,-500.0,0.000198,7]
[407999138,1773000634544,-177.0,0.00019811,2]
[407999139,1773000634558,-286.88,0.0001982,2]
[407999140,1773000634568,-286.88,0.0001982,2]
[407999141,1773000634580,-286.88,0.0001982,2]
[407999142,1773000634590,-286.88,0.0001982,2]
[407999143,1773000634603,-284.57,0.0001982,2]
[407999144,1773000634612,-1558.828,0.00019822,2]
[407999145,1773000634622,-18709.9581259,0.0001983,2]
[407999146,1773000634637,-4430.6580678,0.0001983,2]
[407999147,1773000634646,-26303.00037572,0.0001983,2]
[407999148,1773000634660,-547.77308168,0.0001983,2]
[407999150,1773000638094,-151.0,0.00019199,2]
[407999151,1773000638105,-150.0,0.00019199,2]
[407999152,1773000638117,-190.945512,0.000195,2]
[407999153,1773000638126,-15058.54596511,0.0001983,2]
[407999154,1773000638149,-38381.97207384,0.0001983,2]
[407999155,1773000638160,-1971.8421137,0.0001983,2]
[407999156,1773000638171,-569.87509457,0.0001983,2]
[407999157,1773000638182,-1549.25726644,0.0001983,2]
[407999160,1773000640196,-154.76937547,0.0001973,2]
[407999161,1773000640207,-66462.08035438,0.0001983,2]
[407999162,1773000640407,-2234.6404385,0.0001983,2]
[407999163,1773000640419,-53115.98376171,0.0001983,2]
[407999164,1773000640432,-15569.60573115,0.0001983,2]
[407999165,1773000640442,-151.0,0.0001983,2]
[407999166,1773000640453,-151.0,0.0001983,2]
[407999167,1773000640462,-36238.1140998,0.0001983,2]
[407999168,1773000640471,-3599.7669175,0.0001983,2]
[407999169,1773000640481,-151.0,0.0001983,2]
[407999170,1773000640491,-151.0,0.0001983,2]
[407999171,1773000640502,-151.0,0.0001983,2]
[407999172,1773000640511,-151.0,0.0001983,2]
[407999173,1773000640521,-151.0,0.0001983,2]
[407999174,1773000640531,-183.614862,0.0001983,2]
[407999175,1773000640540,-151.0,0.0001983,2]
[407999176,1773000640550,-151.0,0.0001983,2]
[407999177,1773000640563,-869.17822,0.0001983,2]
[407999178,1773000640574,-869.17822,0.0001983,2]
[407999179,1773000640586,-869.17822,0.0001983,2]
[407999180,1773000640597,-869.17822,0.0001983,2]
[407999181,1773000640607,-869.17822,0.0001983,2]
[407999182,1773000640616,-869.17822,0.0001983,2]
[407999183,1773000640627,-869.17822,0.0001983,2]
[407999184,1773000640639,-869.17822,0.0001983,2]
[407999185,1773000640650,-580.672105,0.0001983,2]
[407999186,1773000640659,-580.672105,0.0001983,2]
[407999187,1773000640668,-580.672105,0.0001983,2]
[407999188,1773000640678,-580.672105,0.0001983,2]
[407999189,1773000640687,-580.672105,0.0001983,2]
[407999190,1773000640696,-580.672105,0.0001983,2]
[407999191,1773000640705,-580.672105,0.0001983,2]
[407999192,1773000640715,-580.672105,0.0001983,2]
[407999193,1773000640724,-151.0,0.0001983,2]
[407999194,1773000640733,-151.0,0.0001983,2]
[407999195,1773000640742,-232.735461,0.0001983,2]
[407999196,1773000640751,-232.735461,0.0001983,2]
[407999197,1773000640761,-232.735461,0.0001983,2]
[407999198,1773000640770,-232.735461,0.0001983,2]
[407999199,1773000640779,-232.735461,0.0001983,2]
[407999200,1773000640789,-232.735461,0.0001983,2]
[407999201,1773000640799,-232.735461,0.0001983,2]
[407999202,1773000640808,-232.735461,0.0001983,2]
[407999203,1773000640817,-151.0,0.0001983,2]
[407999204,1773000640827,-151.0,0.0001983,2]
[407999205,1773000640836,-151.0,0.0001983,2]
[407999206,1773000640845,-151.0,0.0001983,2]
[407999207,1773000640855,-151.0,0.0001983,2]
[407999208,1773000640865,-300.453777,0.0001983,2]
[407999209,1773000640874,-151.0,0.0001983,2]
[407999210,1773000640883,-151.0,0.0001983,2]
[407999211,1773000640892,-151.0,0.0001983,2]
[407999212,1773000640901,-151.0,0.0001983,2]
[407999215,1773000641192,-151.0,0.0001983,2]
[407999216,1773000641202,-151.0,0.0001983,2]
[407999217,1773000641212,-151.0,0.0001983,2]
[407999218,1773000641221,-151.0,0.0001983,2]
[407999219,1773000641230,-765.701769,0.0001983,2]
[407999220,1773000641239,-765.701769,0.0001983,2]
[407999221,1773000641249,-765.701769,0.0001983,2]
[407999222,1773000641258,-765.701769,0.0001983,2]
[407999223,1773000641267,-765.701769,0.0001983,2]
[407999224,1773000641277,-765.701769,0.0001983,2]
[407999225,1773000641286,-765.701769,0.0001983,2]
[407999226,1773000641295,-765.701769,0.0001983,2]
[407999227,1773000641304,-173.486008,0.0001983,2]
[407999228,1773000641314,-173.486008,0.0001983,2]
[407999229,1773000641323,-173.486008,0.0001983,2]
[407999230,1773000641333,-173.486008,0.0001983,2]
[407999231,1773000641343,-173.486008,0.0001983,2]
[407999232,1773000641353,-173.486008,0.0001983,2]
[407999233,1773000641362,-173.486008,0.0001983,2]
[407999234,1773000641371,-173.486008,0.0001983,2]
[407999235,1773000641381,-572.004566,0.0001983,2]
[407999236,1773000641390,-572.004566,0.0001983,2]
[407999237,1773000641399,-572.004566,0.0001983,2]
[407999238,1773000641409,-572.004566,0.0001983,2]
[407999239,1773000641418,-572.004566,0.0001983,2]
[407999240,1773000641427,-572.004566,0.0001983,2]
[407999241,1773000641437,-572.004566,0.0001983,2]
[407999242,1773000641447,-572.004566,0.0001983,2]
[407999243,1773000641456,-151.0,0.0001983,2]
[407999244,1773000641466,-151.0,0.0001983,2]
[407999245,1773000641475,-447.0,0.00019892,2]
[407999246,1773000641486,-151.0,0.00019897,2]
[407999247,1773000641495,-5800.0,0.000199,2]
[407999248,1773000641505,-5800.0,0.000199,2]
[407999249,1773000641515,-151.0,0.000199,2]
[407999250,1773000641524,-151.0,0.000199,2]
[407999251,1773000641534,-151.0,0.000199,2]
[407999252,1773000641544,-151.0,0.000199,2]
[407999253,1773000641553,-150.0,0.000199,2]
[407999254,1773000641568,-2820.95619039,0.000199,2]
[407999255,1773000641578,-200.0,0.000199,2]
[407999256,1773000641587,-151.0,0.000199,2]
[407999257,1773000641597,-150.0,0.000199,2]
[407999258,1773000641609,-10734.12948381,0.000199,3]
[407999259,1773000641618,-151.0,0.000199,2]
[407999260,1773000641627,-150.0,0.000199,2]
[407999261,1773000641638,-869.17822,0.000199,2]
[407999262,1773000641647,-869.17822,0.000199,2]
[407999263,1773000641656,-869.17822,0.000199,2]
[407999264,1773000641666,-869.17822,0.000199,2]
[407999265,1773000641675,-521.28627638,0.000199,2]
[407999266,1773000641684,-176.31965574,0.000199,2]
[407999267,1773000641693,-580.672105,0.000199,2]
[407999268,1773000641702,-580.672105,0.000199,2]
[407999269,1773000641712,-580.672105,0.000199,2]
[407999270,1773000641721,-580.672105,0.000199,2]
[407999271,1773000641730,-2255.11393819,0.000199,2]
[407999272,1773000641740,-151.0,0.000199,2]
[407999273,1773000641749,-232.735461,0.000199,2]
[407999274,1773000641758,-232.735461,0.000199,2]
[407999275,1773000641767,-232.735461,0.000199,2]
[407999276,1773000641776,-232.735461,0.000199,2]
[407999277,1773000641785,-151.0,0.000199,2]
[407999278,1773000641794,-151.0,0.000199,2]
[407999279,1773000641803,-151.0,0.000199,2]
[407999280,1773000641812,-151.0,0.000199,2]
[407999281,1773000641821,-297.459547,0.000199,2]
[407999282,1773000641831,-1300.0,0.000199,7]
[407999283,1773000641840,-267.92599902,0.000199,2]
[407999284,1773000641849,-268.921368,0.000199,2]
[407999285,1773000641858,-765.701769,0.000199,2]
[407999286,1773000641867,-765.701769,0.000199,2]
[407999287,1773000641877,-765.701769,0.000199,2]
[407999288,1773000641886,-765.701773,0.000199,2]
[407999289,1773000641895,-174.28877421,0.000199,2]
[407999290,1773000641904,-1927.56441577,0.000199,2]
[407999291,1773000641913,-173.486008,0.000199,2]
[407999292,1773000641923,-173.486008,0.000199,2]
[407999293,1773000641932,-173.486008,0.000199,2]
[407999294,1773000641942,-173.486003,0.000199,2]
[407999295,1773000641951,-500.0,0.000199,2]
[407999296,1773000641960,-883.47157582,0.000199,2]
[407999297,1773000641970,-210.15822689,0.000199,2]
[407999298,1773000641979,-150.0,0.000199,2]
[407999299,1773000641989,-572.004566,0.000199,2]
[407999300,1773000641998,-572.004566,0.000199,2]
[407999301,1773000642007,-572.004566,0.000199,2]
[407999302,1773000642016,-572.004564,0.000199,2]
[407999303,1773000642025,-151.0,0.000199,2]
[407999304,1773000642035,-204.35999113,0.00019917,2]
[407999305,1773000642044,-869.17822,0.00019923,2]
[407999306,1773000642053,-869.17822,0.00019923,2]
[407999307,1773000642063,-869.17822,0.00019923,2]
[407999308,1773000642073,-869.17822,0.00019923,2]
[407999309,1773000642082,-580.672105,0.00019923,2]
[407999310,1773000642091,-580.672105,0.00019923,2]
[407999311,1773000642100,-580.672105,0.00019923,2]
[407999312,1773000642110,-580.672105,0.00019923,2]
[407999313,1773000642120,-203.715156,0.00019923,2]
[407999314,1773000642130,-232.735461,0.00019923,2]
[407999315,1773000642140,-232.735461,0.00019923,2]
[407999316,1773000642150,-232.735461,0.00019923,2]
[407999317,1773000642160,-232.735463,0.00019923,2]
[407999318,1773000642169,-151.0,0.00019923,2]
[407999319,1773000642178,-151.0,0.00019923,2]
[407999320,1773000642187,-151.0,0.00019923,2]
[407999321,1773000642196,-151.0,0.00019923,2]
[407999322,1773000642206,-637.28,0.00019923,2]
[407999323,1773000642215,-3097.78974,0.0001995,7]
[407999324,1773000642225,-160.44308583,0.0001995,2]
[407999325,1773000642234,-1515.0,0.0001995,2]
[407999326,1773000642244,-1515.0,0.0001995,2]
[407999327,1773000642253,-151.0,0.0001995,2]
[407999328,1773000642262,-1515.0,0.0001995,2]
[407999329,1773000642272,-151.0,0.0001995,2]
[407999330,1773000642281,-1515.0,0.0001995,2]
[407999331,1773000642292,-151.0,0.0001995,2]
[407999332,1773000642301,-1515.0,0.0001995,2]
[407999333,1773000642310,-1515.0,0.0001995,2]
[407999334,1773000642319,-151.0,0.0001995,2]
[407999335,1773000642328,-1515.0,0.0001995,2]
[407999336,1773000642338,-1515.0,0.0001995,2]
[407999337,1773000642348,-151.0,0.0001995,2]
[407999338,1773000642357,-151.0,0.0001995,2]
[407999339,1773000642366,-151.0,0.0001995,2]
[407999340,1773000642375,-151.0,0.0001995,2]
[407999341,1773000642384,-151.0,0.0001995,2]
[407999342,1773000642393,-151.0,0.0001995,2]
[407999343,1773000642403,-151.0,0.0001995,2]
[407999344,1773000642412,-1515.0,0.0001995,2]
[407999345,1773000642432,-1515.0,0.0001995,2]
[407999346,1773000642450,-1515.0,0.0001995,2]
[407999347,1773000642468,-1515.0,0.0001995,2]
[407999348,1773000642487,-1515.0,0.0001995,2]
[407999349,1773000642502,-1515.0,0.0001995,2]
[407999350,1773000642520,-1515.0,0.0001995,2]
[407999351,1773000642538,-1515.0,0.0001995,2]
[407999352,1773000642559,-306.17483749,0.0001995,2]
[407999353,1773000642580,-151.0,0.00019964,2]
[407999354,1773000642597,-151.0,0.00019967,2]
[407999355,1773000642623,-151.0,0.00019967,2]
[407999356,1773000642643,-500.0,0.0001997,2]
[407999357,1773000642657,-400.0,0.0001997,2]
[407999358,1773000642676,-400.0,0.0001997,2]
[407999359,1773000642688,-6110.0,0.00019973,2]
[407999360,1773000642708,-570.0,0.00019973,2]
[407999361,1773000642722,-150.0,0.00019973,2]
[407999362,1773000642739,-869.17822,0.00019973,2]
[407999363,1773000642756,-869.17822,0.00019973,2]
[407999364,1773000642787,-869.17822,0.00019973,2]
[407999365,1773000642804,-869.178226,0.00019973,2]
[407999366,1773000642823,-580.672105,0.00019973,2]
[407999367,1773000642839,-580.672105,0.00019973,2]
[407999368,1773000642856,-580.672105,0.00019973,2]
[407999369,1773000642871,-580.672103,0.00019973,2]
[407999370,1773000642887,-151.0,0.00019977,2]
[407999371,1773000642902,-420.13,0.00019978,2]
[407999372,1773000642918,-150.0,0.0001998,2]
[407999373,1773000642933,-150.0,0.0001998,2]
[407999374,1773000642953,-150.0,0.0001998,2]
[407999375,1773000642972,-150.0,0.0001998,2]
[407999378,1773000642993,-150.0,0.0001998,2]
[407999381,1773000643010,-150.109,0.0001998,2]
[407999383,1773000643028,-150.0,0.0001998,2]
[407999385,1773000643047,-150.0,0.0001998,2]
[407999386,1773000643064,-150.379,0.0001998,2]
[407999389,1773000643080,-150.0,0.0001998,2]
[407999392,1773000643097,-619.0,0.0001998,2]
[407999394,1773000643113,-1042.0,0.0001998,2]
[407999395,1773000643129,-3504.0,0.0001998,2]
[407999396,1773000643146,-1342.0,0.0001998,2]
[407999397,1773000643162,-551.23395292,0.0001998,2]
[407999398,1773000643180,-151.0,0.00019994,2]
[407999399,1773000643196,-5487.79,0.00019994,2]
[407999400,1773000643211,-151.0,0.00019997,2]
[407999401,1773000643226,-151.0,0.00019997,2]
[407999402,1773000643242,-310.89756555,0.00019999,2]
[407999403,1773000643257,-300.0,0.00019999,2]
[407999404,1773000643273,-300.0,0.00019999,2]
[407999405,1773000643290,-300.0,0.00019999,2]
[407999406,1773000643309,-634.35,0.00019999,2]
[407999408,1773000643327,-500.0,0.00019999,2]
[407999411,1773000643344,-500.0,0.00019999,2]
[407999413,1773000643361,-500.0,0.00019999,2]
[407999415,1773000643378,-500.0,0.00019999,2]
[407999417,1773000643393,-500.0,0.00019999,2]
[407999418,1773000643411,-500.0,0.00019999,2]
[407999419,1773000643427,-500.0,0.00019999,2]
[407999420,1773000643444,-500.0,0.00019999,2]
[407999421,1773000643459,-155.0,0.00019999,2]
[407999422,1773000643475,-15479.00190792,0.00019999,2]
[407999423,1773000643490,-474.102705,0.00019999,2]
[407999424,1773000643505,-206.35597305,0.00019999,2]
[407999425,1773000643520,-500.0,0.00019999,2]
[407999427,1773000643536,-477.69069778,0.00019999,2]
[407999429,1773000643551,-169.06691202,0.00019999,2]
[407999430,1773000643567,-500.0,0.00019999,2]
[407999431,1773000643582,-231.89164943,0.00019999,2]
[407999432,1773000643597,-500.0,0.00019999,2]
[407999433,1773000643614,-430.19644101,0.00019999,2]
[407999434,1773000643630,-500.0,0.00019999,2]
[407999435,1773000643649,-500.0,0.00019999,2]
[407999436,1773000643664,-500.0,0.00019999,2]
[407999437,1773000643680,-500.0,0.00019999,2]
[407999438,1773000643695,-500.0,0.00019999,2]
[407999439,1773000643710,-500.0,0.00019999,2]
[407999440,1773000643725,-500.0,0.00019999,2]
[407999441,1773000643740,-159.57758561,0.00019999,2]
[407999442,1773000643753,-270.7026983,0.00019999,2]
[407999443,1773000643769,-500.0,0.00019999,2]
[407999444,1773000643783,-500.0,0.00019999,2]
[407999445,1773000643798,-296.82411186,0.00019999,2]
[407999446,1773000643813,-500.0,0.00019999,2]
[407999447,1773000643828,-500.0,0.00019999,2]
[407999448,1773000643843,-500.0,0.00019999,2]
[407999449,1773000643857,-500.0,0.00019999,2]
[407999450,1773000643872,-500.0,0.00019999,2]
[407999451,1773000643886,-500.0,0.00019999,2]
[407999452,1773000643901,-226.33110666,0.00019999,2]
[407999453,1773000643915,-500.0,0.00019999,2]
[407999454,1773000643930,-500.0,0.00019999,2]
[407999455,1773000643945,-500.0,0.00019999,2]
[407999456,1773000643959,-500.0,0.00019999,2]
[407999457,1773000643973,-500.0,0.00019999,2]
[407999458,1773000643991,-500.0,0.00019999,2]
[407999459,1773000644006,-500.0,0.00019999,2]
[407999460,1773000644020,-500.0,0.00019999,2]
[407999461,1773000644035,-500.0,0.00019999,2]
[407999462,1773000644050,-500.0,0.00019999,2]
[407999463,1773000644064,-500.0,0.00019999,2]
[407999464,1773000644079,-500.0,0.00019999,2]
[407999465,1773000644094,-500.0,0.00019999,2]
[407999466,1773000644109,-500.0,0.00019999,2]
[407999467,1773000644123,-500.0,0.00019999,2]
[407999468,1773000644138,-500.0,0.00019999,2]
[407999469,1773000644154,-500.0,0.00019999,2]
[407999470,1773000644170,-500.0,0.00019999,2]
[407999471,1773000644186,-500.0,0.00019999,2]
[407999472,1773000644202,-500.0,0.00019999,2]
[407999473,1773000644218,-500.0,0.00019999,2]
[407999474,1773000644233,-500.0,0.00019999,2]
[407999475,1773000644248,-500.0,0.00019999,2]
[407999476,1773000644265,-500.0,0.00019999,2]
[407999477,1773000644282,-500.0,0.00019999,2]
[407999478,1773000644297,-500.0,0.00019999,2]
[407999479,1773000644312,-500.0,0.00019999,2]
[407999480,1773000644327,-500.0,0.00019999,2]
[407999481,1773000644344,-500.0,0.00019999,2]
[407999482,1773000644360,-500.0,0.00019999,2]
[407999483,1773000644377,-500.0,0.00019999,2]
[407999484,1773000644392,-500.0,0.00019999,2]
[407999485,1773000644407,-500.0,0.00019999,2]
[407999486,1773000644421,-500.0,0.00019999,2]
[407999487,1773000644438,-500.0,0.00019999,2]
[407999488,1773000644453,-500.0,0.00019999,2]
[407999489,1773000644474,-500.0,0.00019999,2]
[407999490,1773000644492,-500.0,0.00019999,2]
[407999491,1773000644507,-500.0,0.00019999,2]
[407999492,1773000644523,-500.0,0.00019999,2]
[407999493,1773000644539,-500.0,0.00019999,2]
[407999494,1773000644556,-500.0,0.00019999,2]
[407999495,1773000644569,-500.0,0.00019999,2]
[407999496,1773000644899,-500.0,0.00019999,2]